[Event "31st Kavala Open-A 2022"]
[Site "Kavala"]
[Date "2022.07.28"]
[Round "4.14"]
[White "Markidis, Konstantinos"]
[Black "Celik, Hasan Huseyin"]
[Result "1-0"]
[ECO "B42"]
[WhiteElo "2259"]
[BlackElo "2363"]
[Annotator "TA"]
[PlyCount "55"]
[EventDate "2022.07.27"]
[EventType "swiss"]
[EventCountry "GRE"]
[SourceTitle "playchess.com"]
[Source "ChessBase"]
[SourceQuality "1"]
[TimeControl "40/5400+30:1800+30"]

{[%evp 16,55,44,25,28,29,57,58,52,49,41,25,72,64,74,65,49,0,8,18,113,95,179,73,374,352,510,506,971,946,1267,655,29954,29958,6767,5833,5995,2946,29990,29991,29994,29995]} 1. e4 {[%emt 0:08:21]} c5 {[%emt 0:00:19]} 2. Nf3 {[%emt 0:01:08]} e6 {[%emt 0:03:06]} 3. d4 {[%emt 0:00:14]} cxd4 {[%emt 0:00:12]} 4. Nxd4 {[%emt 0:00:08]} a6 {[%emt 0:06:51]} 5. Bd3 {[%emt 0:01:45]} Nf6 {[%emt 0:01:19]} 6. Qe2 {[%emt 0:02:43]} d6 {[%emt 0:00:27]} 7. O-O {[%emt 0:00:39]} Qc7 {[%emt 0:00:42]} 8. c4 {[%emt 0:00:43]} Nbd7 {[%emt 0:03:12] is recently more successful than 8...g6.} 9. b3 {[%emt 0:01:21]} Be7 {[%emt 0:00:00] B42: Sicilian: Kan Variation: 5 Bd3.} 10. Bb2 b6 {[%emt 0:03:50]} 11. Nc3 {[%emt 0:01:16]} Bb7 {[%emt 0:01:45] White is slightly better.} 12. Rae1 {[%emt 0:03:50]} O-O {[%emt 0:00:00]} 13. Kh1 {[%emt 0:22:27] has lost popularity (13.f4).} Rfd8 {[%emt 0:10:55]} (13... Rfe8 $11) 14. f4 $16 {[%emt 0:01:34]} Rac8 {[%emt 0:02:50]} 15. Bb1 {[%emt 0:11:16] White is more active.} Nc5 {[%emt 0:07:14]} 16. f5 {[%emt 0:09:16] And now fxe6 would win.} e5 {[%emt 0:00:43]} 17. Nf3 {[%emt 0:10:57] [#]} Qc6 $146 {[%emt 0:07:10]} (17... b5 $11 {remains equal.}) ({Predecessor:} 17... Bc6 18. Nd2 Qb7 19. a4 Rc7 20. Bc2 Be8 21. b4 Ncd7 22. g4 d5 23. g5 Nxe4 24. Ncxe4 dxc4 {1-0 (41) Peters,M-Terhorst,J (2220) Germany 1991}) 18. Nd5 {[%emt 0:01:58]} (18. g4 {looks sharper.} Nxg4 19. Nd4 Qe8 20. Qxg4 exd4 21. Nd5) 18... Nxd5 {[%emt 0:02:19]} (18... Re8 $16) 19. exd5 $18 {[%emt 0:02:00]} Qc7 {[%emt 0:06:17][%mdl 8192] [#] This costs Black the game.} (19... Qe8 $16 {is more resistant.}) 20. Nxe5 $1 {[%emt 0:04:20]} dxe5 {[%emt 0:03:20]} (20... f6 {might work better.}) 21. Bxe5 {[%emt 0:00:14]} Rd6 {[%emt 0:04:40] [#] Inhibits f6.} (21... Qxe5 $142 22. Qxe5 Bf6) 22. f6 $1 {[%emt 0:00:49]} ({Less strong is} 22. Bxd6 Bxd6 23. f6 g6 $14) 22... Bxf6 {[%emt 0:02:27]} 23. Bxf6 {[%emt 0:00:55][%cal Oe2e8]} gxf6 {[%emt 0:00:49]} 24. Qg4+ {[%emt 0:00:39][%mdl 64] Deflection} Kf8 {[%emt 0:00:38]} 25. Bxh7 {[%emt 0:00:26][%csl Gh7][%cal Rg4g8]} Ne6 {[%emt 0:02:42]} 26. dxe6 {[%emt 0:02:08] Qg8+ would kill now.} Rxe6 {[%emt 0:00:00]} 27. Rxe6 {[%emt 0:00:16]} fxe6 {[%emt 0:00:00]} 28. Rxf6+ {[%emt 0:00:14] Weighted Error Value: White=0.33/Black=1.32} 1-0

[Event "31st Kavala Open-A 2022"]
[Site "Kavala"]
[Date "2022.07.28"]
[Round "4.15"]
[White "Ladopoulos, Dimitrios"]
[Black "Rahmanidis, Petros"]
[Result "1-0"]
[ECO "B57"]
[WhiteElo "2335"]
[BlackElo "2191"]
[Annotator "TA"]
[PlyCount "61"]
[EventDate "2022.07.27"]
[EventType "swiss"]
[EventCountry "GRE"]
[SourceTitle "playchess.com"]
[Source "ChessBase"]
[SourceQuality "1"]
[TimeControl "40/5400+30:1800+30"]

{[%evp 16,61,27,17,9,-2,-3,0,0,-59,25,-72,28,-16,0,0,8,-41,0,-1,1,-3,14,0,0,0,0,0,4,0,393,378,408,389,390,411,404,402,410,395,390,397,1340,1329,1302,1279,1219,1198]} 1. e4 {[%emt 0:00:17]} c5 {[%emt 0:00:44]} 2. Nf3 {[%emt 0:00:15]} d6 {[%emt 0:00:10]} 3. d4 {[%emt 0:01:29]} cxd4 {[%emt 0:00:07]} 4. Nxd4 {[%emt 0:00:03]} Nf6 {[%emt 0:00:05]} 5. Nc3 {[%emt 0:00:04]} Nc6 {[%emt 0:00:04]} 6. Bc4 {[%emt 0:00:57]} Qb6 {[%emt 0:01:26]} 7. Nb3 {[%emt 0:00:49]} e6 {[%emt 0:00:22]} 8. Be3 {[%emt 0:03:36]} Qc7 {[%emt 0:01:29]} 9. Be2 {[%emt 0:11:53]} a6 {[%emt 0:04:46] B57: Classical Sicilian: Sozin with 6...Qb6.} 10. a4 {[%emt 0:00:05]} b6 $1 {[%emt 0:02:14]} 11. f4 {[%emt 0:00:40]} Be7 {[%emt 0:04:08] The position is equal.} 12. g4 {[%emt 0:04:38]} (12. O-O $11) 12... Bb7 {[%emt 0:05:26]} ({Black should play} 12... d5 $1 $15) 13. Bf3 {[%emt 0:01:10] [#]} (13. g5 $11 Nd7 14. O-O) 13... Nd7 $146 {[%emt 0:06:35]} (13... d5 $1 $17 {[%cal Rd5e4] ...dxe4 is the strong threat.} 14. exd5 Nb4) ({Predecessor:} 13... Nb4 14. g5 Nd7 15. h4 h6 16. Kf2 hxg5 17. hxg5 Rxh1 18. Bxh1 O-O-O 19. Qh5 g6 {0-1 (28) Baagadde,D (2030)-Emojong,E (2211) Kampala 2013}) 14. Qe2 {[%emt 0:03:48]} Nc5 {[%emt 0:06:43]} 15. g5 {[%emt 0:12:32]} Rd8 {[%emt 0:15:40]} 16. Rc1 {[%emt 0:11:50]} (16. O-O $11 {should be considered.}) 16... O-O {[%emt 0:21:49]} 17. O-O {[%emt 0:05:38]} Rfe8 {[%emt 0:06:08]} 18. h4 {[%emt 0:12:18]} Bf8 {[%emt 0:03:09]} 19. h5 {[%emt 0:10:43]} d5 {[%emt 0:00:03]} 20. exd5 {[%emt 0:05:41]} exd5 {[%emt 0:06:56]} 21. Nxd5 {[%emt 0:03:49]} Nd4 {[%emt 0:05:10] [#]} 22. Bxd4 {[%emt 0:06:02]} Rxd5 {[%emt 0:05:43][%mdl 8192]} (22... Bxd5 23. Be5) 23. Qxe8 $18 {[%emt 0:02:09]} Rxg5+ {[%emt 0:02:01] [#]} 24. Kf2 $1 {[%emt 0:00:01][%cal Bg1f2,Bf2e2,Be2d2][%mdl 32]} ({And not} 24. fxg5 Qg3+ 25. Kh1 Bxf3+ 26. Rxf3 Qxf3+ 27. Kg1 Nxb3 28. cxb3 Qg3+ 29. Kf1 Qf4+ 30. Ke2 Qxc1 $11) 24... Qxf4 {[%emt 0:00:35]} 25. Qe3 {[%emt 0:00:20]} Ne4+ {[%emt 0:00:54]} 26. Ke2 {[%emt 0:00:36]} Ng3+ {[%emt 0:00:20]} 27. Kd2 {[%emt 0:00:09]} Nxf1+ {[%emt 0:00:40]} 28. Rxf1 {[%emt 0:00:01] Really sharp!} Qf5 {[%emt 0:00:25] [#]} (28... Bd6 29. Be2 Qxe3+ 30. Bxe3 Rd5+ 31. Nd4 Be5) 29. Bxb7 $1 {[%emt 0:00:20] White is clearly winning.} Qxf1 {[%emt 0:00:35]} 30. Qxg5 {[%emt 0:00:01]} h6 {[%emt 0:00:22]} 31. Qe5 {[%emt 0:00:29] Weighted Error Value: White=0.19 (very precise) /Black=0.51} 1-0

[Event "31st Kavala Open-A 2022"]
[Site "Kavala"]
[Date "2022.07.28"]
[Round "4.16"]
[White "Magalakis, Stefanos"]
[Black "Koutlas, Nikolaos"]
[Result "0-1"]
[ECO "D35"]
[WhiteElo "2181"]
[BlackElo "2314"]
[Annotator "TA"]
[PlyCount "122"]
[EventDate "2022.07.27"]
[EventType "swiss"]
[EventCountry "GRE"]
[SourceTitle "playchess.com"]
[Source "ChessBase"]
[SourceQuality "1"]
[TimeControl "40/5400+30:1800+30"]

{[%evp 18,122,0,0,14,7,54,45,65,35,55,74,77,64,93,102,83,95,87,71,104,74,52,54,63,55,66,-160,-40,-80,-96,-102,-58,-40,-18,-65,-62,-84,-79,-93,-91,-91,-84,-86,-88,-109,-109,-134,-110,-110,-53,-78,-61,-183,-168,-309,-180,-167,-180,-243,-253,-237,-231,-476,-461,-543,-422,-460,-278,-265,-233,-323,-315,-429,-419,-497,-495,-470,-473,-600,-606,-498,-487,-489,-465,-478,-460,-462,-360,-360,-359,-356,-97,-345,-345,-442,-402,-354,-338,-750,-718,-879,-824,-1060,-1030,-29983,-29984]} 1. d4 {[%emt 0:00:06]} d5 {[%emt 0:00:06]} 2. c4 {[%emt 0:00:07]} e6 {[%emt 0:00:05]} 3. Nf3 {[%emt 0:00:14]} Nf6 {[%emt 0:00:14]} 4. cxd5 {[%emt 0:00:18]} exd5 {[%emt 0:00:06]} 5. Nc3 {[%emt 0:00:35]} c6 {[%emt 0:03:43]} 6. Qc2 {[%emt 0:04:03]} Bd6 {[%emt 0:05:39]} 7. Bg5 {[%emt 0:01:00]} O-O {[%emt 0:01:17]} 8. e3 {[%emt 0:06:22]} Re8 {[%emt 0:00:20]} 9. Bd3 {[%emt 0:02:31]} h6 {[%emt 0:00:17]} 10. Bh4 {[%emt 0:00:07]} a5 {[%emt 0:00:29] D35: Queen's Gambit Declined: Exchange Variation.} 11. O-O {[%emt 0:04:26]} Na6 {[%emt 0:01:44]} (11... Bg4 $11 {is more appropriate.}) 12. a3 $14 {[%emt 0:01:39]} Nc7 {[%emt 0:01:18] White is slightly better.} 13. Rab1 {[%emt 0:07:12] [#]} Bd7 $146 {[%emt 0:30:10]} ({Predecessor:} 13... Bg4 14. Nd2 Bd7 15. Bg3 Bxg3 {½-½ (15) Matsuura,E (2433)-Santiago,Y (2486) Florianopolis 2020}) 14. e4 {[%emt 0:20:05]} dxe4 {[%emt 0:00:50]} 15. Nxe4 {[%emt 0:00:18]} Be7 {[%emt 0:02:18] ...Nxe4 is the strong threat.} 16. Bxf6 {[%emt 0:01:16]} Bxf6 {[%emt 0:17:07]} 17. Nd6 {[%emt 0:00:14][%csl LRb7,LRe8]} Re7 {[%emt 0:00:07]} 18. Nxb7 {[%emt 0:05:45] Pair of Knights!} Qb8 {[%emt 0:01:46]} 19. Nd6 {[%emt 0:12:08]} Ne6 {[%emt 0:01:40][%csl LRd4,LRd6]} 20. Nf5 {[%emt 0:07:52]} Re8 {[%emt 0:00:05]} 21. Rfe1 {[%emt 0:01:31]} Qf4 {[%emt 0:05:54]} 22. Qc1 $2 {[%emt 0:02:23]} (22. Rbd1 $14 {stays ahead.}) 22... g6 {[%emt 0:00:52]} (22... Qxc1 $1 $17 23. Rbxc1 Nf4) 23. Nxh6+ {[%emt 0:14:54]} Kg7 {[%emt 0:00:18]} 24. Nxf7 {[%emt 0:00:33]} Kxf7 {[%emt 0:02:22]} 25. Qc2 {[%emt 0:02:06]} Nf8 {[%emt 0:02:03]} 26. Be4 {[%emt 0:01:04]} (26. Qc3 $1 $11) 26... Kg7 $15 {[%emt 0:00:56]} 27. Rbc1 {[%emt 0:01:21]} Re6 {[%emt 0:03:36]} 28. g3 {[%emt 0:02:01]} Qd6 {[%emt 0:01:22]} 29. Ne5 {[%emt 0:01:10][%cal Re4g6]} Bxe5 {[%emt 0:05:04]} 30. dxe5 {[%emt 0:00:02]} Rxe5 {[%emt 0:00:07]} (30... Qxe5 $6 31. Bxg6 Qf6 32. Be4 $11) 31. Red1 {[%emt 0:00:42]} Qf6 {[%emt 0:01:16]} 32. Bg2 {[%emt 0:00:34]} Rae8 {[%emt 0:00:57]} 33. Qc3 {[%emt 0:00:48][%cal Rg2c6]} Bg4 {[%emt 0:03:11]} ({Black should play} 33... Rf5 $17 34. Qxf6+ Rxf6) 34. Rd4 {[%emt 0:00:46]} Bf5 {[%emt 0:01:10]} 35. h4 {[%emt 0:00:41] Black continues to play with concentration.} ({Better is} 35. b4 $15) 35... c5 $19 {[%emt 0:00:35]} 36. Rc4 {[%emt 0:00:37] [#]} (36. Rdd1 $142) 36... Re1+ $3 {[%emt 0:02:04][%mdl 512]} 37. Rxe1 {[%emt 0:00:54]} Qxc3 {[%emt 0:00:06][%mdl 64] Remove Defender} 38. bxc3 {[%emt 0:00:26]} (38. Rxc3 $142 Rxe1+ 39. Kh2) 38... Rxe1+ {[%emt 0:00:04]} 39. Kh2 {[%emt 0:00:02]} Nd7 {[%emt 0:01:10]} 40. Bc6 $2 {[%emt 0:00:00]} (40. Ra4) 40... Be6 {[%emt 0:00:00]} 41. Ra4 {[%emt 0:05:26]} Ne5 {[%emt 0:02:29]} 42. Bb7 {[%emt 0:03:05]} Rc1 {[%emt 0:04:17]} 43. Rxa5 {[%emt 0:01:32]} Rxc3 {[%emt 0:00:35] Threatens to win with ...Ng4+.} 44. Be4 {[%emt 0:01:31]} Bf5 {[%emt 0:04:30] White must now prevent ...Ng4+.} 45. Ra7+ {[%emt 0:04:05]} Kh6 {[%emt 0:01:03]} 46. Bxf5 {[%emt 0:02:01]} gxf5 {[%emt 0:00:04][%mdl 4096] Endgame KRN-KR} 47. Kg2 {[%emt 0:00:45]} Ng4 {[%emt 0:03:00] Hoping for ...Rc2.} 48. Rc7 {[%emt 0:08:22]} Rc2 {[%emt 0:04:04]} 49. a4 {[%emt 0:01:02]} Nxf2 {[%emt 0:01:28] aiming for ...Kh5.} 50. a5 {[%emt 0:00:40]} Nd1+ {[%emt 0:00:50]} 51. Kf1 {[%emt 0:00:56]} Ne3+ {[%emt 0:01:33]} 52. Ke1 {[%emt 0:00:07]} Kh5 {[%emt 0:00:54] ( -> ...Kg4)} 53. Re7 {[%emt 0:01:46]} Nc4 {[%emt 0:02:34]} (53... Nd5 54. Re2 Rc1+ 55. Kd2 $17) 54. a6 {[%emt 0:00:42]} Kg4 $2 {[%emt 0:00:48]} (54... Ra2 $19 55. a7 Nd6) 55. Kd1 $2 {[%emt 0:01:33]} (55. a7 $17 Ra2 56. Rg7+ Kf3 57. Kd1) 55... Ra2 $1 {[%emt 0:01:01]} 56. a7 {[%emt 0:00:55]} Nd6 {[%emt 0:02:26]} 57. Rg7+ {[%emt 0:00:38] [#]} Kh5 $1 {[%emt 0:00:53]} ({Not} 57... Kf3 58. h5 $11) 58. Rh7+ $2 {[%emt 0:00:40] [#]} (58. Kc1) 58... Kg6 $1 {[%emt 0:00:08]} ({Inferior is} 58... Kg4 59. Rg7+ Kh5 60. Ke1 $19) 59. Rc7 {[%emt 0:00:57]} Ne4 {[%emt 0:00:21]} 60. Ke1 {[%emt 0:00:36]} Nxg3 {[%emt 0:00:32]} 61. Rxc5 {[%emt 0:02:55]} Ra1+ {[%emt 0:00:05] Weighted Error Value: White=0.70/Black=0.27 (precise)} 0-1

[Event "31st Kavala Open-A 2022"]
[Site "Kavala"]
[Date "2022.07.29"]
[Round "5.1"]
[White "Halkias, Stelios"]
[Black "Kilic, Eray"]
[Result "1/2-1/2"]
[ECO "E06"]
[WhiteElo "2512"]
[BlackElo "2422"]
[Annotator "TA"]
[PlyCount "36"]
[EventDate "2022.07.27"]
[EventType "swiss"]
[EventCountry "GRE"]
[SourceTitle "playchess.com"]
[Source "ChessBase"]
[SourceQuality "1"]
[TimeControl "40/5400+30:1800+30"]

{[%evp 14,36,16,-3,17,14,24,5,24,17,20,18,11,10,20,0,0,0,10,-1,0,0,6,12,13]} 1. Nf3 {[%emt 0:02:02]} Nf6 {[%emt 0:00:07]} 2. c4 {[%emt 0:00:39]} e6 {[%emt 0:00:11]} 3. g3 {[%emt 0:04:51]} Be7 {[%emt 0:00:14]} 4. Bg2 {[%emt 0:00:22]} d5 {[%emt 0:00:13]} 5. d4 {[%emt 0:01:39]} O-O {[%emt 0:00:09]} 6. O-O {[%emt 0:03:20]} c6 {[%emt 0:00:29][%cal Bc7c6,Bc6c5][%mdl 32]} 7. Nbd2 {[%emt 0:01:38]} b6 {[%emt 0:01:34]} 8. Qc2 {[%emt 0:00:40]} c5 {[%emt 0:00:28] E06: Closed Catalan: Early deviations.} 9. b3 {[%emt 0:02:43]} Nc6 {[%emt 0:00:44]} 10. Bb2 {[%emt 0:01:09]} Bb7 {[%emt 0:00:24]} (10... Nxd4 {looks sharper.} 11. Nxd4 cxd4 12. cxd5 Nxd5 13. Bxd4 Ba6) 11. Rad1 {[%emt 0:08:06]} cxd4 {[%emt 0:00:39] The position is equal.} 12. Nxd4 {[%emt 0:04:12]} Nxd4 {[%emt 0:00:07]} 13. Bxd4 {[%emt 0:00:21]} Qc7 {[%emt 0:00:13] [#]} 14. Qc3 $146 {[%emt 0:23:56]} ({Predecessor:} 14. Qb2 dxc4 15. Be5 Qc8 16. Bxb7 Qxb7 17. Nxc4 Rfd8 18. Ne3 Ne8 19. Ng4 {0-1 (33) Valentine,T (1591)-Ghose,R (1840) Southend on Sea 2022}) 14... Rfd8 {[%emt 0:06:31]} 15. Be5 {[%emt 0:10:41]} Qc8 {[%emt 0:03:45]} 16. Rc1 {[%emt 0:03:07]} dxc4 {[%emt 0:07:14]} 17. Nxc4 {[%emt 0:00:53]} Bxg2 {[%emt 0:03:20]} 18. Kxg2 {[%emt 0:00:06]} Qb7+ {[%emt 0:06:53] An even fight not without its subleties.  Weighted Error Value: White=0.11 (very precise) /Black=0.07 (flawless)} 1/2-1/2

[Event "31st Kavala Open-A 2022"]
[Site "Kavala"]
[Date "2022.07.29"]
[Round "5.2"]
[White "Levin, Guy"]
[Black "Kourkoulos-Arditis, Stamatis"]
[Result "0-1"]
[ECO "A49"]
[WhiteElo "2363"]
[BlackElo "2535"]
[Annotator "TA"]
[PlyCount "56"]
[EventDate "2022.07.27"]
[EventType "swiss"]
[EventCountry "GRE"]
[SourceTitle "playchess.com"]
[Source "ChessBase"]
[SourceQuality "1"]
[TimeControl "40/5400+30:1800+30"]

{[%evp 9,56,10,18,11,17,13,5,0,0,0,0,0,9,0,0,0,0,0,0,0,0,-75,-75,-86,-91,-88,-79,-129,-117,-120,-7,-114,-129,-127,-134,-191,-201,-221,-223,-228,-206,-224,-203,-252,-255,-713,-713,-5343,-5243]} 1. Nf3 {[%emt 0:00:02]} Nf6 {[%emt 0:00:06]} 2. g3 {[%emt 0:00:03]} g6 {[%emt 0:00:05]} 3. b3 {[%emt 0:00:03]} Bg7 {[%emt 0:00:09]} 4. Bb2 {[%emt 0:00:02]} d6 {[%emt 0:00:22]} 5. d4 {[%emt 0:00:06]} b5 {[%emt 0:01:40]} 6. Bg2 {[%emt 0:01:35][%cal Of3e5] A49: 1 d4 Nf6 2 Nf3 g6 3 g3: Anti-King's Indian systems.} Bb7 {[%emt 0:01:50]} 7. O-O {[%emt 0:00:26]} O-O {[%emt 0:00:06]} 8. c4 {[%emt 0:02:17] The position is equal.} bxc4 {[%emt 0:00:41]} 9. bxc4 {[%emt 0:00:09]} Nbd7 {[%emt 0:00:09]} 10. Nbd2 {[%emt 0:02:05]} Ne4 {[%emt 0:00:48]} 11. Nb3 {[%emt 0:14:08]} c5 {[%emt 0:17:50] [#]} 12. Ng5 $146 {[%emt 0:21:07]} ({Predecessor:} 12. Qc2 cxd4 13. Nbxd4 Nec5 14. Ng5 Bxg2 15. Kxg2 e5 16. Nc6 Qxg5 17. h4 Qg4 18. f3 {0-1 (30) Kossobudzki,R (2031)-Putlak,W (2000) Katowice 2021}) 12... Nxg5 {[%emt 0:01:36]} 13. Bxb7 {[%emt 0:00:04]} Rb8 {[%emt 0:00:06]} 14. Bd5 {[%emt 0:05:51]} Nb6 {[%emt 0:17:46]} 15. dxc5 {[%emt 0:01:24]} (15. Rc1 $11 {keeps the balance.}) 15... Bxb2 $17 {[%emt 0:00:04]} 16. cxb6 {[%emt 0:00:08]} Bxa1 {[%emt 0:01:19]} (16... axb6 17. Rb1 Bg7 18. Nd4 $11) 17. bxa7 {[%emt 0:00:27]} Ra8 {[%emt 0:00:03][%cal Oa1f6] White must now prevent ...Bf6!} ({But not} 17... Nh3+ 18. Kg2 Ra8 19. Qxa1 $16 (19. Bxa8 Qxa8+ 20. Kxh3 Bf6 $11)) 18. Bxa8 {[%emt 0:01:52]} ({Better is} 18. Qxa1 Rxa7 19. Nd4) 18... Qxa8 {[%emt 0:00:30][%cal Rg5h3]} 19. h4 {[%emt 0:00:03]} Nh3+ {[%emt 0:00:17]} 20. Kh2 {[%emt 0:00:12] [#]} Nxf2 $1 {[%emt 0:12:52][%mdl 512]} 21. Rxf2 {[%emt 0:11:37]} Qxa7 {[%emt 0:00:00]} 22. Rg2 {[%emt 0:04:18]} (22. e3 $17 Be5 23. Nd4) 22... Be5 $19 {[%emt 0:00:00]} 23. e4 {[%emt 0:00:38]} Qe3 {[%emt 0:01:22] Inhibits c5.} 24. Nd2 {[%emt 0:03:46]} Rb8 {[%emt 0:01:26]} 25. Qf3 {[%emt 0:03:13]} Qd4 {[%emt 0:00:20]} 26. Rf2 {[%emt 0:05:43]} f6 {[%emt 0:01:00] And now ...Rb2 would win. Active counter play!} 27. Re2 $2 {[%emt 0:05:01]} (27. Rg2) 27... Rb2 $1 {[%emt 0:02:32][%csl LRa2,LRd2]} 28. Nf1 {[%emt 0:07:23]} Qd1 {[%emt 0:00:30] Weighted Error Value: White=0.65/Black=0.01 (flawless)} 0-1

[Event "31st Kavala Open-A 2022"]
[Site "Kavala"]
[Date "2022.07.29"]
[Round "5.3"]
[White "Schroeder, Jan-Christian"]
[Black "Yilmazyerli, Mert"]
[Result "1/2-1/2"]
[ECO "B36"]
[WhiteElo "2563"]
[BlackElo "2520"]
[Annotator "TA"]
[PlyCount "46"]
[EventDate "2022.07.27"]
[EventType "swiss"]
[EventCountry "GRE"]
[SourceTitle "playchess.com"]
[Source "ChessBase"]
[SourceQuality "1"]
[TimeControl "40/5400+30:1800+30"]

{[%evp 21,46,50,46,48,39,9,22,19,22,22,12,0,20,23,30,23,26,27,23,32,19,-27,-20,-14,-8,-58,-12]} 1. e4 {[%emt 0:10:03]} c5 {[%emt 0:10:09]} 2. Nf3 {[%emt 0:00:21]} Nc6 {[%emt 0:00:14]} 3. d4 {[%emt 0:00:00]} cxd4 {[%emt 0:00:18]} 4. Nxd4 {[%emt 0:00:00]} g6 {[%emt 0:00:06]} 5. c4 {[%emt 0:00:00]} Nf6 {[%emt 0:00:06]} 6. Nc3 {[%emt 0:00:13]} d6 {[%emt 0:05:03]} 7. f3 {[%emt 0:00:39]} Nxd4 {[%emt 0:00:00]} 8. Qxd4 {[%emt 0:00:00]} Bg7 {[%emt 0:00:00]} 9. Be3 {[%emt 0:00:00]} O-O {[%emt 0:00:00]} 10. Qd2 {[%emt 0:00:00]} Be6 {[%emt 0:00:00]} 11. Rc1 {[%emt 0:00:00]} Qa5 {[%emt 0:00:00]} 12. b3 {[%emt 0:04:36] B36: Sicilian: Maroczy Bind: Gurgenidze System.} Rfc8 {[%emt 0:00:39]} 13. Nb5 {[%emt 0:17:37]} Qxd2+ {[%emt 0:00:21]} 14. Kxd2 {[%emt 0:00:04] The position is equal.} Nd7 {[%emt 0:08:09]} 15. Be2 {[%emt 0:07:09]} a5 {[%emt 0:01:13]} 16. Nd4 {[%emt 0:10:05]} Nc5 {[%emt 0:00:58]} 17. g4 {[%emt 0:02:19] [#]} h6 $146 {[%emt 0:01:59]} ({Predecessor:} 17... Bd7 18. Nc2 Ne6 19. f4 Bc6 20. Bf3 Nc5 21. Bxc5 dxc5 22. a4 e5 23. fxe5 Bxe5 {0-1 (78) Thybo,J (2496)-Ruiz Castillo,J (2415) Riga 2018}) 18. h4 {[%emt 0:00:42]} Bd7 {[%emt 0:01:42]} 19. Rhg1 {[%emt 0:03:34]} Kh7 {[%emt 0:06:11]} 20. Rgd1 {[%emt 0:06:18]} Be5 {[%emt 0:09:51]} 21. Rb1 {[%emt 0:02:55]} (21. h5 $142) 21... a4 $11 {[%emt 0:06:24]} 22. b4 {[%emt 0:02:20]} Ne6 {[%emt 0:03:29]} 23. Ke1 {[%emt 0:08:06]} (23. Nxe6 $11 Bxe6 24. f4) 23... a3 {[%emt 0:03:58] Weighted Error Value: White=0.12 (very precise) /Black=0.02 (flawless)} (23... Bg3+ $15 {was preferrable.} 24. Bf2 Bf4) 1/2-1/2

[Event "31st Kavala Open-A 2022"]
[Site "Kavala"]
[Date "2022.07.29"]
[Round "5.4"]
[White "Gagare, Shardul"]
[Black "Kanakaris, Georgios"]
[Result "1/2-1/2"]
[ECO "A15"]
[WhiteElo "2514"]
[BlackElo "2389"]
[Annotator "TA"]
[PlyCount "64"]
[EventDate "2022.07.27"]
[EventType "swiss"]
[EventCountry "GRE"]
[SourceTitle "playchess.com"]
[Source "ChessBase"]
[SourceQuality "1"]
[TimeControl "40/5400+30:1800+30"]

{[%evp 11,64,16,54,0,8,0,21,21,21,0,0,0,0,-25,0,0,0,0,13,7,15,-22,0,0,0,0,0,-11,14,-12,41,0,0,0,0,0,11,0,0,-57,-54,-54,-51,-51,-53,-67,-33,-38,-44,-33,0,0,0,0,0]} 1. Nf3 {[%emt 0:01:11]} Nf6 {[%emt 0:00:35]} 2. c4 {[%emt 0:00:39]} g6 {[%emt 0:01:19]} 3. g3 {[%emt 0:02:52]} Bg7 {[%emt 0:00:25]} 4. Bg2 {[%emt 0:00:06]} O-O {[%emt 0:02:34]} 5. O-O {[%emt 0:00:25]} d5 {[%emt 0:01:59]} 6. cxd5 {[%emt 0:00:58]} Qxd5 {[%emt 0:00:58] [#]} 7. d3 $146 {[%emt 0:04:13] A15: English Opening: 1...Nf6.} (7. d4 $14 {was preferrable.}) ({Predecessor:} 7. Nc3 Qh5 8. d3 Bh3 9. Ng5 Bxg2 10. Kxg2 h6 11. Nf3 Nc6 12. Qb3 Rab8 13. Bf4 e5 14. Be3 Qf5 {1-0 (34) Adly,A (2602)-Ezat,M (2418) Chess.com INT 2021}) 7... Qh5 $11 {[%emt 0:09:40]} 8. Bg5 {[%emt 0:07:57]} h6 {[%emt 0:09:42]} 9. Bxf6 {[%emt 0:02:59]} exf6 {[%emt 0:01:07]} 10. Qc1 {[%emt 0:11:21]} c6 {[%emt 0:01:15]} 11. Nbd2 {[%emt 0:06:27][%cal Bb1d2,Bd2e4,Be4c3][%mdl 32]} Na6 {[%emt 0:02:04]} 12. Ne4 {[%emt 0:10:40]} Qd5 {[%emt 0:19:10]} 13. Nc3 {[%emt 0:06:10]} Qd6 {[%emt 0:01:45]} 14. d4 {[%emt 0:00:57]} f5 {[%emt 0:01:10]} 15. Rd1 {[%emt 0:02:43]} Be6 {[%emt 0:01:48]} 16. Qf4 {[%emt 0:08:59]} Rad8 {[%emt 0:05:20]} 17. Qxd6 {[%emt 0:01:24]} Rxd6 {[%emt 0:01:57]} 18. e3 {[%emt 0:03:48]} Rfd8 {[%emt 0:07:50]} 19. Rdc1 {[%emt 0:04:59]} R6d7 {[%emt 0:12:36]} 20. Na4 {[%emt 0:02:01] Against c5} Rd5 {[%emt 0:02:35]} ({Better is} 20... g5 $11) 21. a3 {[%emt 0:09:31]} (21. b4 $5) 21... Ra5 {[%emt 0:01:46]} 22. Nc3 {[%emt 0:00:08] [#] Hoping for b4.} c5 {[%emt 0:00:06] Against b4} 23. Ne2 {[%emt 0:05:19]} Rb5 {[%emt 0:06:38]} 24. Rc2 {[%emt 0:00:23]} Rb6 {[%emt 0:00:35]} 25. dxc5 {[%emt 0:03:41]} ({White should play} 25. Rd2 $11 Rbd6 26. b4) 25... Rxb2 $15 {[%emt 0:00:05]} 26. Rxb2 {[%emt 0:00:12]} Bxb2 {[%emt 0:00:06][%cal Bg7b2,Bb2a3,Ba3c5][%mdl 32]} 27. Rb1 {[%emt 0:00:02]} Bxa3 {[%emt 0:00:58] A strong pair of Bishops.} 28. Ned4 {[%emt 0:01:17]} Bxc5 {[%emt 0:07:39] Strongly threatening ...Bd5.} ({Don't take} 28... Nxc5 29. Nb5 $14) (28... Ba2 $5 {[%cal Ra2b1]} 29. Rxb7 Bxc5 $17) 29. Nxe6 {[%emt 0:00:08]} fxe6 {[%emt 0:00:03]} 30. Rxb7 {[%emt 0:00:06]} Nb4 {[%emt 0:00:26]} 31. Ne5 {[%emt 0:00:21]} Rd1+ {[%emt 0:00:19]} 32. Bf1 {[%emt 0:00:01]} g5 {[%emt 0:00:16] Weighted Error Value: White=0.15 (very precise) /Black=0.15 (very precise)} 1/2-1/2